bitfinex/quotes_ETHUSD_20250504
["timestamp","ask_amount","ask_price","bid_price","bid_amount"]
[1746402321623,5.51989271,1811.7,1811.3,0.25751952]
[1746402321822,5.25887262,1811.6,1811.3,0.25751952]
[1746402322054,5.25887262,1811.6,1811.2,5.52109402]
[1746402322263,5.25887262,1811.6,1811.2,6.15353811]
[1746402322469,5.25887262,1811.6,1811.2,11.67452943]
[1746402322674,5.25887262,1811.6,1811.3,0.25751952]
[1746402323046,5.5205918,1811.4,1811.3,0.25751952]
[1746402323539,5.52102631,1811.3,1810.9,2.48011668]
[1746402323734,5.52102631,1811.3,1810.9,8.002099]
[1746402323967,5.52102631,1811.3,1811.0,0.25028579]
[1746402324637,11.04218886,1811.3,1811.0,3.01420382]
[1746402324843,5.52102631,1811.3,1811.0,3.01420382]
[1746402325172,0.326,1811.4,1811.0,8.53590451]
[1746402325173,5.52071002,1811.4,1811.0,8.53590451]
[1746402325482,5.52071002,1811.4,1811.1,0.85359045]
[1746402325868,5.52071002,1811.4,1811.2,0.25159377]
[1746402326389,5.52071002,1811.4,1811.0,8.28569844]
[1746402326689,5.52071002,1811.4,1811.1,0.25159377]
[1746402326880,5.52071002,1811.4,1811.2,0.8288]
[1746402327092,81.86841093,1811.8,1811.7,6.89847765]
[1746402327297,81.86841093,1811.8,1811.7,2.07063338]
[1746402327582,81.86841093,1811.8,1811.5,6.34887841]
[1746402327887,81.86841093,1811.8,1811.6,0.25128598]
[1746402328249,81.86841093,1811.8,1811.6,5.77124343]
[1746402329059,5.51967765,1811.7,1811.6,0.25128598]
[1746402329266,5.84567765,1811.7,1811.6,0.25128598]
[1746402329547,5.84567765,1811.7,1811.2,11.04208082]
[1746402329548,3.0,1811.6,1811.2,11.04208082]
[1746402329773,3.0,1811.6,1811.3,0.22388909]
[1746402329959,8.52004191,1811.6,1811.3,0.22388909]
[1746402330396,5.84567765,1811.7,1811.3,0.22388909]
[1746402330705,5.84582427,1811.7,1811.3,0.22388909]
[1746402331064,0.326,1811.7,1811.3,0.22388909]
[1746402331284,87.387952,1811.8,1811.5,0.8332]
[1746402332079,81.86841093,1811.8,1811.6,0.22388909]
[1746402332884,87.38781545,1811.8,1811.6,0.22388909]
[1746402333186,81.86841093,1811.8,1811.5,0.8332]
[1746402333517,81.86841093,1811.8,1811.5,6.35346864]
[1746402333703,87.38778411,1811.8,1811.5,6.35346864]
[1746402333903,87.38778411,1811.8,1811.5,0.8332]
[1746402334282,81.86841093,1811.8,1811.5,6.35342915]
[1746402334478,81.86841093,1811.8,1811.6,5.57500933]
[1746402334814,81.86841093,1811.8,1811.7,0.22404269]
[1746402335429,87.38778392,1811.8,1811.7,0.22404269]
[1746402335637,5.52002892,1811.6,1811.3,0.7626]
[1746402335828,11.03963158,1811.7,1811.4,0.22388909]
[1746402335989,5.51968107,1811.7,1811.3,11.80414575]
[1746402336185,5.51968107,1811.7,1811.4,0.22388909]
[1746402336518,5.51968107,1811.7,1811.3,6.28328768]
[1746402336724,5.51968107,1811.7,1811.5,0.22388909]
[1746402336933,5.51968107,1811.7,1811.3,6.28328768]
[1746402337092,90.38794175,1811.8,1811.6,0.22388909]
[1746402337287,90.38794175,1811.8,1811.4,5.52054175]
[1746402337482,90.38794175,1811.8,1811.7,0.22388909]
[1746402337699,90.38794175,1811.8,1811.3,6.28328768]
[1746402337700,5.51993958,1811.7,1811.3,6.28328768]
[1746402338019,5.51993958,1811.7,1811.4,0.22388909]
[1746402338188,90.38797142,1811.8,1811.4,5.52058798]
[1746402338390,90.38797142,1811.8,1811.5,0.22388909]
[1746402338585,95.90758837,1811.8,1811.5,0.22388909]
[1746402338785,90.38797142,1811.8,1811.5,0.22388909]
[1746402338985,5.51987736,1811.7,1811.5,0.22388909]
[1746402339222,5.51987736,1811.7,1811.3,6.28343672]
[1746402339385,5.51987736,1811.7,1811.4,0.22388909]
[1746402339720,5.51987736,1811.7,1811.3,7.79442341]
[1746402339926,5.51998233,1811.6,1811.5,0.22388909]
[1746402340130,5.52027675,1811.6,1811.3,0.7626]
[1746402340530,5.52027675,1811.6,1811.4,0.22388909]
[1746402340921,5.52027675,1811.6,1811.3,0.7626]
[1746402341120,90.13941093,1811.8,1811.5,5.74621694]
[1746402341297,89.81341093,1811.8,1811.5,5.52025435]
[1746402341498,89.81341093,1811.8,1811.6,0.22596259]
[1746402342128,89.81341093,1811.8,1811.6,1.05346259]
[1746402342310,81.86841093,1811.8,1811.7,5.51967765]
[1746402342827,81.86841093,1811.8,1811.6,6.34744816]
[1746402343143,81.86841093,1811.8,1811.7,0.2268074]
[1746402344642,81.86841093,1811.8,1811.7,7.23353282]
[1746402344797,81.86632603,1811.8,1811.7,7.23353282]
[1746402346537,81.86632603,1811.8,1811.7,7.78353282]
[1746402346728,81.86632603,1811.8,1811.7,11.36038713]
[1746402348352,74.79273987,1811.8,1811.7,8.61593282]
[1746402349847,74.79273987,1811.8,1811.7,8.67111808]
[1746402350023,60.54002868,1811.8,1811.7,8.61593282]
[1746402350228,1e-08,1811.8,1811.7,13.55493282]
[1746402353431,1e-08,1811.8,1811.7,1.0592074]
[1746402354471,5.51817434,1812.0,1811.7,1.0592074]
[1746402356470,5.51898111,1812.0,1811.7,1.0592074]
[1746402356633,8.5182974,1812.2,1811.7,1.0592074]
[1746402356839,5.51916802,1811.9,1811.7,1.0592074]
[1746402357476,5.51937299,1811.8,1811.7,1.0592074]
[1746402358378,8.51937299,1811.8,1811.7,0.2268074]
[1746402358737,5.5205737,1811.5,1811.3,3.70862691]
[1746402359075,8.5205918,1811.4,1811.3,3.70862691]
[1746402359552,8.52089659,1811.3,1811.2,3.70862691]
[1746402360471,3.0,1811.3,1811.2,3.70862691]
[1746402360665,8.52089659,1811.3,1811.2,3.70862691]
[1746402360873,3.0,1811.3,1811.2,3.70862691]
[1746402361377,8.52089659,1811.3,1811.2,3.70862691]
[1746402361582,3.0,1811.3,1811.2,3.70862691]
[1746402362575,8.52089659,1811.3,1811.2,3.70862691]
[1746402362882,8.52089659,1811.3,1811.0,2.76391803]
[1746402364367,5.5207368,1811.4,1811.1,0.05520874]
[1746402364783,8.52063913,1811.4,1811.1,0.05520874]
[1746402364951,8.52060221,1811.4,1811.1,0.05520874]
[1746402365480,14.04143592,1811.4,1811.0,3.70296222]
[1746402365785,14.04143453,1811.4,1811.0,2.76391803]
[1746402366087,8.52060221,1811.4,1811.0,8.28570487]
[1746402366383,8.52060221,1811.4,1811.1,0.17788834]
[1746402366555,3.40958465,1811.4,1811.1,0.17788834]
[1746402366761,0.40958465,1811.4,1811.1,0.2330967]
[1746402366969,3.0,1811.4,1811.1,0.2330967]
[1746402367286,5.52019492,1811.6,1811.2,5.52113883]
[1746402367787,5.52019492,1811.6,1811.3,0.18295651]
[1746402368080,13.45980644,1811.7,1811.3,0.18295651]
[1746402368252,5.93995342,1811.7,1811.3,6.27961931]
[1746402368682,5.93995342,1811.7,1811.3,11.80031125]
[1746402368884,5.93995342,1811.7,1811.3,6.2795639]
[1746402369682,0.4202595,1811.7,1811.3,6.2795639]
[1746402369978,10.45957209,1811.8,1811.3,11.80033363]
[1746402370189,10.45957209,1811.8,1811.3,6.2795639]
[1746402370480,10.45957209,1811.8,1811.4,5.52057575]
[1746402370781,10.45957209,1811.8,1811.5,0.18149711]
[1746402372085,4.48897472,1811.7,1811.5,0.18149711]
[1746402372279,4.48897472,1811.7,1811.3,11.61744213]
[1746402372586,10.45957209,1811.8,1811.4,6.86373793]
[1746402372781,10.45957209,1811.8,1811.7,0.41988568]
[1746402373086,8.51957209,1811.8,1811.7,0.41988568]
[1746402373285,8.51957209,1811.8,1811.7,0.60138279]
[1746402373462,8.51957209,1811.8,1811.7,3.3458371]
[1746402374091,8.51957209,1811.8,1811.7,2.92595142]
[1746402375585,4.66295243,1811.7,1811.3,3.70862691]
[1746402375790,5.5207602,1811.4,1811.3,3.70862691]
[1746402375956,5.52035812,1811.5,1811.3,3.70862691]
[1746402376153,5.5207602,1811.4,1811.3,3.70862691]
[1746402376970,5.52103926,1811.3,1810.8,4.82881406]
[1746402377286,11.04387494,1811.0,1810.8,4.82881406]
[1746402377463,5.52211607,1810.9,1810.8,4.82881406]
[1746402377664,8.52211607,1810.9,1810.8,4.82881406]
[1746402378603,3.0,1810.8,1810.4,2.75469561]
[1746402378840,8.52255999,1810.8,1810.4,8.2781267]
[1746402379128,8.52255999,1810.8,1810.5,0.82781267]
[1746402379499,0.41942824,1811.0,1810.6,0.05522685]
[1746402379733,5.52197424,1811.0,1810.6,8.25623378]
[1746402379945,5.52212243,1810.9,1810.5,11.87407224]
[1746402380145,0.42031843,1811.0,1810.7,5.52262024]
[1746402380304,0.42031843,1811.0,1810.8,6.12979705]
[1746402380510,4.935,1811.2,1810.9,5.52193481]
[1746402380689,0.42256212,1811.2,1810.9,5.52198223]
[1746402380890,5.52075749,1811.4,1811.0,0.55219822]
[1746402381095,10.45544506,1811.5,1811.1,0.05521129]
[1746402381290,10.4551444,1811.6,1811.1,5.5212451]
[1746402381529,5.52046388,1811.5,1811.1,5.5212451]
[1746402381736,10.45528021,1811.6,1811.2,6.07331776]
[1746402381897,10.45507883,1811.6,1811.2,6.12835195]
[1746402382096,4.935,1811.6,1811.3,5.52087861]
[1746402382587,5.9375191,1811.6,1811.3,5.52089144]
[1746402382806,5.9375191,1811.6,1811.3,6.68029532]
[1746402383130,5.52024643,1811.6,1811.3,1.15940388]
[1746402383295,5.52024643,1811.6,1811.4,0.1597625]
[1746402383494,5.52024643,1811.6,1811.3,1.15940388]
[1746402383495,5.52033417,1811.5,1811.3,1.15940388]
[1746402383695,5.52033417,1811.5,1811.2,0.55212451]
[1746402383909,5.52019245,1811.6,1811.2,6.07329511]
[1746402384335,5.52001404,1811.6,1811.2,11.59428367]
[1746402384534,5.51985144,1811.7,1811.3,5.57604151]
[1746402384839,5.5195427,1811.8,1811.4,5.52058114]
[1746402384989,5.92598347,1811.8,1811.4,6.63013197]
[1746402385192,5.92598347,1811.8,1811.5,0.05519696]
[1746402385801,0.40644077,1811.8,1811.5,5.57536161]
[1746402386042,5.51889948,1812.0,1811.6,5.5198316]
[1746402386254,5.51927027,1811.9,1811.5,5.52016465]
[1746402386450,5.51927027,1811.9,1811.6,6.28165578]
[1746402386615,5.51949894,1811.8,1811.6,0.7617]
[1746402386943,5.51916838,1811.9,1811.6,0.7617]
[1746402387627,5.94405729,1811.9,1811.6,0.7617]
[1746402388527,4.91411872,1811.9,1811.6,0.7617]
[1746402388928,5.51938246,1811.8,1811.6,0.7617]
[1746402389329,5.51927315,1811.9,1811.6,0.7617]
[1746402389525,5.51939758,1811.8,1811.6,0.7617]
[1746402389716,5.51989453,1811.7,1811.3,1.3117]
[1746402389917,5.84543185,1811.8,1811.3,1.50018459]
[1746402390118,5.52009291,1811.6,1811.3,0.7617]
[1746402390730,5.52028705,1811.5,1811.3,0.7617]
[1746402391157,5.52028705,1811.5,1811.0,11.00562709]
[1746402391158,5.5205918,1811.4,1811.1,0.8283]
[1746402391341,5.52089829,1811.3,1811.1,2.01170161]
[1746402391544,5.52074576,1811.4,1811.1,2.01170161]
[1746402391833,5.52092993,1811.3,1811.1,2.01170161]
[1746402392035,11.04206716,1811.3,1811.1,0.8283]
[1746402392327,5.52092993,1811.3,1811.1,0.8283]
[1746402392526,5.93615847,1811.4,1811.1,0.8283]
[1746402392729,11.45703668,1811.4,1811.1,0.8283]
[1746402392931,5.93615847,1811.4,1811.1,0.8283]
[1746402393141,11.45702754,1811.4,1811.1,0.8283]
[1746402393516,5.93615847,1811.4,1811.1,0.8283]
[1746402393733,5.93615847,1811.4,1811.1,1.463305]
[1746402393942,5.93615847,1811.4,1811.2,0.148316]
[1746402394147,5.52089659,1811.3,1811.2,0.148316]
[1746402394352,5.93615847,1811.4,1811.2,0.148316]
[1746402395352,5.52010664,1811.6,1811.3,0.8301]
[1746402395656,5.52010664,1811.6,1811.4,0.15100397]
[1746402395819,5.52010664,1811.6,1811.3,1.48004238]
[1746402396155,8.52010664,1811.6,1811.5,0.15100397]
[1746402396356,8.52010664,1811.6,1811.3,0.8301]
[1746402396514,8.52010664,1811.6,1811.5,0.15100397]
[1746402396718,5.51977479,1811.7,1811.3,6.35098507]
[1746402396916,10.45355731,1811.8,1811.5,0.96580397]
[1746402397137,5.51979442,1811.7,1811.5,0.8148]
[1746402397363,10.45351868,1811.8,1811.6,0.15100397]
[1746402397562,5.51951868,1811.8,1811.6,0.15100397]
[1746402397725,5.92777207,1811.8,1811.6,0.15100397]
[1746402400031,0.40825339,1811.8,1811.7,0.8311]
[1746402400220,5.51922697,1811.9,1811.7,0.98010709]
[1746402400859,11.03859726,1811.9,1811.7,0.98010709]
[1746402401024,5.51922697,1811.9,1811.7,0.98010709]
[1746402401351,4.48895756,1811.9,1811.7,0.98010709]
[1746402402251,5.51894441,1812.0,1811.7,0.98010709]
[1746402402458,5.51894441,1812.0,1810.9,4.82881406]
[1746402402459,0.326,1811.7,1810.9,4.82881406]
[1746402402753,5.52181115,1811.0,1810.9,4.82881406]
[1746402402951,5.26096796,1811.0,1810.9,4.82881406]
[1746402403362,5.93450382,1811.1,1810.9,4.82881406]
[1746402403522,5.52181115,1811.0,1810.9,4.82881406]
[1746402404941,11.45628654,1811.1,1810.9,4.82881406]
[1746402405169,5.52127656,1811.2,1810.9,5.39223547]
[1746402405936,5.52127656,1811.2,1810.9,0.56342141]
[1746402406137,5.52127656,1811.2,1810.8,0.8054]
[1746402406327,11.04274755,1811.2,1810.8,0.8054]
[1746402406669,5.52134198,1811.2,1810.8,6.32782027]
[1746402407047,5.52109665,1811.3,1810.8,6.3276398]
[1746402407367,5.52109665,1811.3,1810.9,6.84810464]
[1746402407537,5.52109665,1811.3,1811.0,0.68481046]
[1746402407966,5.52124487,1811.2,1811.0,0.68481046]
[1746402408261,5.52107332,1811.3,1810.9,6.84820657]
[1746402408744,5.52075776,1811.4,1811.1,0.55]
[1746402408955,5.52103531,1811.3,1811.1,0.55]
[1746402409838,5.52075776,1811.4,1811.1,0.55]
[1746402410198,5.52090528,1811.3,1811.2,0.12271636]
[1746402410473,5.92601318,1811.3,1811.2,0.12271636]
[1746402412355,0.4051079,1811.3,1811.2,0.12271636]
[1746402412533,5.52089659,1811.3,1811.2,0.17792174]
[1746402412740,5.52089659,1811.3,1811.2,0.12271636]
[1746402413287,4.49075018,1811.3,1811.2,2.8583992]
[1746402413583,4.49075018,1811.3,1811.2,0.12271636]
[1746402414988,4.89586821,1811.3,1811.2,0.12271636]
[1746402415871,0.40511803,1811.3,1811.2,0.12271636]
[1746402416072,5.52059446,1811.4,1811.2,0.12271636]
[1746402416291,5.52059446,1811.4,1811.2,0.1779217]
[1746402416498,5.52008946,1811.6,1811.3,0.7811]
[1746402416699,11.04034196,1811.6,1811.3,1.42910923]
[1746402416859,5.52008946,1811.6,1811.4,0.12271636]
[1746402417059,5.52008946,1811.6,1811.3,1.42910923]
[1746402417272,5.52008946,1811.6,1811.5,0.12271636]
[1746402417492,5.52008946,1811.6,1811.3,1.42910923]
[1746402417797,5.52008946,1811.6,1811.5,0.12471127]
[1746402417984,5.52008946,1811.6,1811.3,1.42910923]
[1746402418191,5.52008946,1811.6,1811.5,0.12471127]
[1746402418363,5.52008946,1811.6,1811.3,1.42910923]
[1746402418563,5.52008946,1811.6,1811.5,0.12471127]
[1746402418764,5.52008946,1811.6,1811.3,1.42910923]
[1746402418986,5.52008946,1811.6,1811.5,0.12471127]
[1746402419177,5.52049435,1811.5,1811.3,0.7811]
[1746402419495,5.5211881,1811.3,1811.1,0.7768]
[1746402419701,5.5211881,1811.3,1810.9,10.45010014]
[1746402419702,5.5211881,1811.3,1811.0,0.7768]
[1746402419913,11.04235148,1811.3,1811.0,0.7768]
[1746402420058,11.04228434,1811.3,1811.0,0.7768]
[1746402420265,5.52112096,1811.3,1811.0,0.7768]
[1746402420465,11.04231904,1811.3,1811.0,0.7768]
[1746402420679,5.52125134,1811.2,1811.0,0.7768]
[1746402420883,5.52201274,1811.0,1810.8,2.76856763]
[1746402421115,5.52211607,1810.9,1810.8,2.76856763]
[1746402421903,7.1503438,1810.9,1810.8,2.76856763]
[1746402422387,6.35431903,1810.9,1810.8,2.76856763]
[1746402422971,6.77920702,1810.9,1810.8,2.76856763]
[1746402423402,7.04333168,1810.9,1810.8,2.76856763]
[1746402423768,6.21112872,1810.9,1810.8,2.76856763]
[1746402423975,6.21112872,1810.9,1810.8,2.8932789]
[1746402424910,0.42488799,1810.9,1810.8,2.8932789]
[1746402425088,5.52204038,1811.0,1810.8,2.8932789]
[1746402425290,4.49162218,1810.9,1810.8,2.8932789]
[1746402425485,4.90250709,1810.9,1810.8,2.8932789]
[1746402425816,0.41088491,1810.9,1810.8,3.18260679]
[1746402426011,5.52166342,1811.1,1810.8,3.18260679]
[1746402426214,5.52059329,1811.4,1811.0,6.27867414]
[1746402426421,5.52059329,1811.4,1811.0,0.757]
[1746402426717,5.52102622,1811.3,1811.1,0.13069768]
[1746402427009,5.52082089,1811.4,1811.1,0.13069768]
[1746402427321,5.52024451,1811.6,1811.2,5.52101467]
[1746402427678,5.93004924,1811.6,1811.3,0.13215561]
[1746402427877,5.93003327,1811.6,1811.3,0.13215561]
[1746402428078,5.520663,1811.4,1811.1,6.16226094]
[1746402428416,1.24200769,1811.6,1811.3,0.7858]
[1746402428580,0.40980473,1811.6,1811.3,6.36171383]
[1746402428774,5.51977893,1811.7,1811.3,6.36171383]
[1746402428981,5.51977893,1811.7,1811.4,0.13215561]
[1746402429397,5.51977893,1811.7,1811.3,6.30651173]
[1746402429582,0.83220296,1811.9,1811.6,5.51992005]
[1746402429783,11.0378146,1812.0,1811.6,5.51988182]
[1746402430016,5.94364871,1812.0,1811.7,0.13215561]
[1746402430606,5.51920767,1811.9,1811.7,0.13215561]
[1746402430916,5.51920767,1811.9,1811.5,5.52020702]
[1746402430917,6.35141063,1811.9,1811.5,11.04026266]
[1746402431110,6.35141063,1811.9,1811.6,0.12962272]
[1746402431883,5.51967765,1811.7,1811.6,0.12962272]
[1746402432096,5.5205918,1811.4,1811.3,0.7858]
[1746402432307,5.52015235,1811.6,1811.1,0.7976]
[1746402432517,5.52042057,1811.5,1811.1,6.31895611]
[1746402432690,5.52042057,1811.5,1811.1,7.50301183]
[1746402432897,5.52015235,1811.6,1811.2,5.52118945]
[1746402433092,5.52015235,1811.6,1811.1,7.55821946]
[1746402433093,5.51983333,1811.7,1811.3,11.04161755]
[1746402433298,5.51983333,1811.7,1811.3,5.52069592]
[1746402433689,11.03975186,1811.7,1811.3,5.52069592]
[1746402433891,5.51983333,1811.7,1811.3,5.52069592]
[1746402434219,5.51983333,1811.7,1811.4,5.52057548]
[1746402434921,5.51925314,1811.9,1811.5,11.8150701]
[1746402435086,5.51925314,1811.9,1811.5,6.29489367]
[1746402435418,5.51923339,1811.9,1811.5,6.29489367]
[1746402436127,5.51923339,1811.9,1811.6,5.51991567]
[1746402436888,11.03904498,1811.8,1811.5,0.7748]
[1746402437093,5.52020008,1811.6,1811.3,0.798]
[1746402437622,5.52030068,1811.5,1811.3,0.798]
[1746402437821,5.5205918,1811.4,1811.1,0.8274]
[1746402437995,5.52042526,1811.5,1811.1,6.98379489]
[1746402438723,5.92831423,1811.5,1811.1,6.98379489]
[1746402438923,5.92831423,1811.5,1811.2,0.12824153]
[1746402439523,5.92831423,1811.5,1811.2,5.64939224]
[1746402439829,0.40788897,1811.5,1811.2,5.64939224]
[1746402440126,5.52032103,1811.5,1811.2,0.81798059]
[1746402440329,5.52032103,1811.5,1811.2,6.33908226]
[1746402440929,5.52018479,1811.6,1811.2,6.33908226]
[1746402441800,5.52069296,1811.4,1811.2,0.12824153]
[1746402442129,5.52089659,1811.3,1811.2,0.12824153]
[1746402442541,5.52069296,1811.4,1811.2,0.12824153]
[1746402443331,4.48923371,1811.4,1811.2,0.12824153]
[1746402445111,5.52089659,1811.3,1811.2,0.12824153]
[1746402446234,5.52089659,1811.3,1810.9,6.2402]
[1746402446235,5.52165736,1811.1,1810.9,6.2402]
[1746402446447,5.52165736,1811.1,1810.9,6.31422]
[1746402446745,5.52181115,1811.0,1810.7,0.7622]
[1746402446904,5.5221505,1810.9,1810.7,0.7622]
[1746402447105,5.52242102,1810.8,1810.6,0.55]
[1746402447312,5.52242102,1810.8,1810.6,1.2356047]
[1746402447547,5.52242102,1810.8,1810.6,0.55]
[1746402448106,5.52302694,1810.7,1810.5,0.7829]
[1746402448307,5.52333609,1810.5,1810.4,7.58350967]
[1746402449136,5.52326003,1810.6,1810.4,7.58350967]
[1746402449343,6.35401411,1811.0,1810.4,8.42081064]
[1746402449344,6.35415221,1811.0,1810.4,8.42081064]
[1746402449518,5.52303943,1810.6,1810.4,8.42081064]
[1746402449929,5.52292121,1810.7,1810.4,8.42081064]
[1746402450206,5.52292121,1810.7,1810.4,8.47604073]
[1746402450618,5.52306625,1810.6,1810.4,3.59199658]
[1746402450841,5.94161583,1810.6,1810.4,3.59199658]
[1746402451220,5.94161583,1810.6,1810.4,2.75469561]
[1746402452344,0.41854958,1810.6,1810.4,2.75469561]
[1746402452504,5.52292121,1810.7,1810.4,2.80992586]
[1746402453623,5.52320794,1810.6,1810.4,2.75469561]
[1746402453833,11.04593648,1810.7,1810.5,0.12074121]
[1746402454038,5.52194652,1811.0,1810.6,6.87393103]
[1746402454246,11.04402526,1811.0,1810.7,0.1277267]
[1746402454444,5.52213703,1810.9,1810.7,0.1277267]
[1746402455161,5.52194652,1811.0,1810.7,0.1277267]
[1746402455353,4.49034877,1811.0,1810.7,0.82789225]
[1746402455661,5.52163776,1811.1,1810.7,11.2280106]
[1746402455858,5.52163776,1811.1,1810.8,6.27726448]
[1746402456030,5.52163776,1811.1,1810.9,0.1263444]
[1746402456230,5.52163776,1811.1,1810.8,0.7549]
[1746402456438,5.52163776,1811.1,1810.9,0.1263444]
[1746402456641,5.52163776,1811.1,1810.8,0.7549]
[1746402456841,5.52163776,1811.1,1810.9,0.1263444]
[1746402457036,0.40901006,1811.1,1810.9,6.07197962]
[1746402457259,5.52108055,1811.3,1811.0,5.64814808]
[1746402457761,5.52108055,1811.3,1811.1,0.775]
[1746402457925,5.52108055,1811.3,1811.1,0.90019269]
[1746402458529,6.35267008,1811.5,1811.1,0.90019269]
[1746402458530,5.52078679,1811.4,1811.1,0.90019269]
[1746402459262,11.04161324,1811.4,1811.1,0.90019269]
[1746402459767,11.4481389,1811.4,1811.1,0.90019269]
[1746402459936,5.92731245,1811.4,1811.1,0.90019269]
[1746402460565,5.52109233,1811.3,1811.1,0.90019269]
[1746402461366,5.52120141,1811.2,1811.1,0.12519269]
[1746402461568,5.52168422,1811.1,1810.8,3.58696763]
[1746402461775,5.52168422,1811.1,1810.9,0.48296822]
[1746402463369,5.52181115,1811.0,1810.9,0.12427146]
[1746402463567,5.52181115,1811.0,1810.8,3.58696763]
[1746402463772,5.52181115,1811.0,1810.9,0.12427146]
[1746402463971,5.52181115,1811.0,1810.8,3.58696763]
[1746402464264,5.52181115,1811.0,1810.9,0.12427146]
[1746402464452,5.52168422,1811.1,1810.8,2.76856763]
[1746402464639,5.52168422,1811.1,1810.9,0.12427146]
[1746402464841,5.52168422,1811.1,1810.8,4.1499476]
[1746402465172,5.52168422,1811.1,1810.9,0.12427146]
[1746402465371,5.52168422,1811.1,1810.8,2.76856763]
[1746402465674,5.52168422,1811.1,1810.9,0.12427146]
[1746402465969,5.52168422,1811.1,1810.8,2.76856763]
[1746402466171,5.52089659,1811.3,1811.0,0.12427146]
[1746402466341,5.52089659,1811.3,1810.8,2.76856763]
[1746402466342,5.52150626,1811.1,1810.8,2.76856763]
[1746402466542,5.52150626,1811.1,1810.9,0.12427146]
[1746402466748,5.52150626,1811.1,1810.8,3.59767602]
[1746402466948,5.52150626,1811.1,1811.0,0.12427146]
[1746402467173,5.52150626,1811.1,1810.8,2.76856763]
[1746402467369,5.52150626,1811.1,1811.0,0.12204454]
[1746402467550,4.48901768,1811.1,1810.8,2.76856763]
[1746402467750,4.48901768,1811.1,1811.0,0.12204454]
[1746402467975,4.48901768,1811.1,1810.9,0.8009]
[1746402468276,4.48901768,1811.1,1811.0,0.12204454]
[1746402468473,5.52133661,1811.2,1811.0,0.12204454]
[1746402469563,5.5210549,1811.3,1811.0,0.12204454]
[1746402469782,5.92898915,1811.4,1811.0,6.61886773]
[1746402470105,0.40827516,1811.4,1811.2,0.8189]
[1746402470251,0.40827516,1811.4,1811.3,0.122889]
[1746402470437,5.52041152,1811.5,1811.3,0.122889]
[1746402470841,11.04098963,1811.5,1811.3,0.122889]
[1746402471082,5.52041152,1811.5,1811.3,0.122889]
[1746402471284,5.5205918,1811.4,1811.3,0.122889]
[1746402471576,0.41301096,1811.4,1811.3,0.122889]
[1746402471771,5.52049853,1811.5,1811.3,0.122889]
[1746402472344,5.52049853,1811.5,1811.3,0.76917696]
[1746402474692,6.35168433,1811.8,1811.3,6.28993017]
[1746402474892,5.51981182,1811.7,1811.4,5.57570417]
[1746402475094,6.76661385,1811.8,1811.5,0.90408618]
[1746402475298,0.41483881,1811.8,1811.6,5.51995642]
[1746402475444,0.41483881,1811.8,1811.7,0.55199564]
[1746402475654,5.51918061,1811.9,1811.7,0.12058618]
[1746402475952,5.51918061,1811.9,1811.5,11.8236848]
[1746402476195,5.51918061,1811.9,1811.6,5.64055992]
[1746402476493,5.51893135,1812.0,1811.6,5.64037294]
[1746402476653,5.9395736,1812.0,1811.6,5.64037294]
[1746402476853,0.42064225,1812.0,1811.7,6.08355218]
[1746402477066,11.26783853,1812.1,1811.8,0.9097212]
[1746402477474,0.83220296,1812.1,1811.8,6.4288668]
[1746402477675,5.71302477,1812.4,1812.1,0.7823]
[1746402477676,0.83220296,1812.4,1812.1,0.7823]
[1746402477893,5.51710248,1812.6,1812.2,5.62889323]
[1746402478057,6.34901269,1812.7,1812.3,0.56288932]
[1746402478257,5.51680973,1812.7,1812.3,0.56288932]
[1746402478462,5.51680973,1812.7,1812.4,0.11084063]
[1746402478761,14.1393754,1812.8,1812.3,6.08063116]
[1746402478974,14.1393754,1812.8,1812.4,0.10892319]
[1746402479169,14.1393754,1812.8,1812.4,0.61895543]
[1746402479370,14.1393754,1812.8,1812.5,0.8121]
[1746402479573,9.2223754,1812.8,1812.6,0.10892319]
[1746402480182,3.70591482,1812.8,1812.6,0.10892319]
[1746402480565,5.51620464,1812.9,1812.6,0.10892319]
[1746402480764,7.27867222,1813.0,1812.6,0.7527277]
[1746402480765,5.51633038,1812.8,1812.6,0.7527277]
[1746402481097,5.51633038,1812.8,1812.6,0.10892319]
[1746402481299,5.41633038,1812.8,1812.6,0.10892319]
[1746402481503,5.84087669,1812.8,1812.6,0.10892319]
[1746402482058,0.42454631,1812.8,1812.6,0.10892319]
[1746402482256,1.0,1813.0,1812.6,0.10892319]
[1746402482257,6.51588985,1813.0,1812.6,6.26950966]
[1746402482469,1.0,1813.0,1812.7,5.51661064]
[1746402482795,6.5157803,1813.0,1812.8,0.10623968]
[1746402483170,1.0,1813.0,1812.8,0.10623968]
[1746402483670,0.20997289,1812.9,1812.8,0.10623968]
[1746402483886,0.20997289,1812.9,1812.8,0.6685163]
[1746402484262,0.20997289,1812.9,1812.8,0.10623968]
[1746402484486,0.20997289,1812.9,1812.6,6.16058369]
[1746402484792,0.20997289,1812.9,1812.7,0.10623968]
[1746402484993,0.62069358,1812.9,1812.7,0.10623968]
[1746402485162,0.20997289,1812.9,1812.6,6.16056813]
[1746402485363,0.20997289,1812.9,1812.7,0.72229649]
[1746402486797,0.41702862,1813.2,1812.8,0.55]
[1746402486980,0.27193093,1813.9,1813.2,0.8141]
[1746402487157,0.42101257,1813.9,1813.3,5.56965765]
[1746402487353,10.60114949,1814.3,1813.4,0.55696576]
[1746402487354,5.51384272,1813.7,1813.4,0.55696576]
[1746402487558,5.51402343,1813.6,1813.2,6.32904144]
[1746402487793,5.51328702,1813.8,1813.2,0.8141]
[1746402487995,0.26267632,1813.9,1813.2,0.8141]
[1746402487996,5.51408378,1813.6,1813.2,0.8141]
[1746402488205,10.42808378,1813.6,1813.2,0.8141]
[1746402488490,4.914,1813.6,1813.2,1.50203183]
[1746402488909,5.51421428,1813.5,1813.2,0.8141]
[1746402489075,5.51435333,1813.5,1813.2,0.8141]
[1746402489774,10.42807675,1813.6,1813.2,0.8141]
[1746402489983,4.914,1813.6,1813.2,0.8141]
[1746402490298,4.914,1813.6,1813.3,5.51478794]
[1746402490499,4.914,1813.6,1813.3,6.69897771]
[1746402490669,5.51362273,1813.7,1813.3,6.69896358]
[1746402491095,10.42645514,1813.8,1813.3,6.69896358]
[1746402491263,5.5137321,1813.7,1813.3,1.18437439]
[1746402491600,5.5137321,1813.7,1813.2,6.32902124]
[1746402491800,5.5137321,1813.7,1813.2,11.84390926]
[1746402491976,5.5137321,1813.7,1813.3,5.51478737]
[1746402493397,4.913,1813.8,1813.2,0.8141]
[1746402493702,5.51362675,1813.7,1813.3,5.51458889]
[1746402493901,5.92475157,1813.9,1813.5,6.33794442]
[1746402494102,10.42632455,1813.8,1813.5,0.8238]
[1746402494394,4.913,1813.8,1813.5,0.8238]
[1746402494896,5.51433282,1813.5,1813.3,1.95166363]
[1746402495108,6.0657661,1813.5,1813.1,0.7673]
[1746402495267,5.51433282,1813.5,1813.1,6.28252602]
[1746402496303,5.513591,1813.7,1813.1,0.7673]
[1746402496498,5.5146446,1813.4,1813.1,0.7673]
[1746402496663,5.51433161,1813.5,1813.1,6.28267867]